Cogmind - Beta 10.2 @@@ ROGUE MODE // 2020.12.29 @ 05:05:09 Player: Wyvric Result: Destroyed by H-66 Slayer with Gauss Rifle Performance ------------- Evolutions (4) 2000 Regions Visited (11) 2200 Robots Destroyed (50) 250 Value Destroyed (2739) 2739 Prototype IDs (29) 580 Alien Tech Used (0) 0 Bonus (1987) 1987 TOTAL SCORE: 9756 Bonus ------- High Alert Combat Kills 52 Follower Combat Kills 35 Entered Garrisons 600 Used RIF Installer 1000 Aligned with FarCom 300 Cogmind --------- Core Integrity 0/850 Matter 259/300 Energy 86/100 System Corruption 0% Temperature Cool (0) Movement Walking (270) Ox5 Location -6/Garrison Parts ------- > --- POWER (1) -------- (None) > --- PROPULSION (4) --- Flexi-carbon Leg > --- UTILITY (8) ------ Large Storage Unit Large Storage Unit High-capacity Storage Unit High-capacity Storage Unit Advanced Terrain Scan Processor Microactuators > --- WEAPON (2) ------- Powered Hammer Powered Hammer > --- INVENTORY (32) --- Advanced Heat Sink Large Storage Unit Large Storage Unit Lightpack 2.0 Enhanced Optical Array Advanced Sensor Array Long-range Terrain Scanner Improved Armor Integrity Analyzer Experimental Utility Shielding Thermal Defense Suite Relay Coupler [NC] (21) Relay Coupler [NC] (26) Relay Coupler [NC] (29) Relay Coupler [Swarmer] (42) Relay Coupler [Brawler] (29) Relay Coupler [Sentry] (17) Relay Coupler [Sentry] (17) Relay Coupler [Sentry] (20) Relay Coupler [Sentry] (21) Relay Coupler [Sentry] (19) Relay Coupler [Hunter] (10) System Backup Module Drone Bay (2/2) PSU Rigger High-powered Shock Rifle Improved EM Pulse Cannon YOLO Cannon Powered Hammer Katana Peak State ------------ > --- POWER ------------ Light Angular Momentum Engine > --- PROPULSION ------- Medium Treads Medium Treads Armored Huge Wheel > --- UTILITY ---------- Medium Storage Unit Large Storage Unit Large Storage Unit Large Storage Unit Large Storage Unit Advanced Terrain Scan Processor Improved Hacking Suite System Backup Module > --- WEAPON ----------- Powered Hammer Powered Hammer > --- INVENTORY -------- Armored Treads Medium Treads Medium Treads Lightpack 2.0 Enhanced Optical Array Advanced Sensor Array Long-range Terrain Scanner Microactuators Advanced ECM Suite Improved Medium Armor Plating Relay Coupler [NC] Relay Coupler [NC] Relay Coupler [NC] Relay Coupler [Swarmer] Relay Coupler [Swarmer] Relay Coupler [Brawler] Relay Coupler [Sentry] Relay Coupler [Sentry] Relay Coupler [Sentry] Relay Coupler [Sentry] Relay Coupler [Sentry] Relay Coupler [Hunter] Drone Bay PSU Rigger High-powered Shock Rifle YOLO Cannon Improved Datajack Powered Hammer Powered Hammer [Rating: 61] Favorites ----------- Power Ion Engine Engine Ion Engine Propulsion Light Treads Treads Light Treads Leg Aluminum Leg Wheel Armored Huge Wheel Flight Unit Improved VTOL Module Utility Large Storage Unit Device System Backup Module Storage Large Storage Unit Processor Advanced Terrain Scan Processor Hackware Improved Hacking Suite Protection Light Armor Plating Weapon Powered Hammer Energy Gun Pulse Rifle Ballistic Gun Heavy Assault Rifle Impact Weapon Powered Hammer Slashing Weapon Axe Special Melee Weapon Improved Datajack Build | -11 -10 -10 -10 -9 -8 -8 -7 -7 -7 -6 -6 ------- Run | Scr Mat Min Exi Min Mat Gar Fac Gar Fac Fac Gar Slots Evolved 8 | . . . . . 4 . 2 . . 2 . Power . | . . . . . . . . . . . . Propulsion 2 | . . . . . . . . . . 2 . Utility 6 | . . . . . 4 . 2 . . . . Weapon . | . . . . . . . . . . . . Parts Attached 96 | 6 3 3 2 . 9 8 10 9 14 28 4 Power 8 | 1 . 1 . . 1 . 1 1 1 2 . Engine 8 | 1 . 1 . . 1 . 1 1 1 2 . Core . | . . . . . . . . . . . . Reactor . | . . . . . . . . . . . . Propulsion 16 | 2 . 2 . . . 1 3 . 1 6 1 Treads 9 | . . 2 . . . 1 1 . . 5 . Leg 3 | 2 . . . . . . . . . . 1 Wheel 3 | . . . . . . . 1 . 1 1 . Hover . | . . . . . . . . . . . . Flight 1 | . . . . . . . 1 . . . . Utility 44 | 1 2 . 2 . 4 5 3 1 9 14 3 Device 14 | . . . . . . . . . 6 6 2 Storage 15 | 1 2 . 2 . 3 3 2 . . 2 . Processor 3 | . . . . . . 1 . . 2 . . Hackware 4 | . . . . . . . . . 1 3 . Protection 8 | . . . . . 1 1 1 1 . 3 1 Artifact . | . . . . . . . . . . . . Weapon 28 | 2 1 . . . 4 2 3 7 3 6 . Energy Gun 8 | . 1 . . . 1 . 2 4 . . . Energy Cannon . | . . . . . . . . . . . . Ballistic Gun 7 | 2 . . . . 2 2 1 . . . . Ballistic Cannon . | . . . . . . . . . . . . Launcher . | . . . . . . . . . . . . Special Weapon . | . . . . . . . . . . . . Impact Weapon 4 | . . . . . . . . . 1 3 . Slashing Weapon 5 | . . . . . 1 . . 3 1 . . Piercing Weapon . | . . . . . . . . . . . . Special Melee Weapon 4 | . . . . . . . . . 1 3 . Unidentified Prototypes 4 | . . . . . 1 . 1 . . 2 . Parts Lost 27 | . 4 1 . . . 3 . 5 . 11 3 Power 3 | . 1 . . . . . . . . 2 . Propulsion 8 | . 1 . . . . 1 . . . 5 1 Utility 5 | . . . . . . 1 . 1 . 1 2 Weapon 11 | . 2 1 . . . 1 . 4 . 3 . Highest Loss Streak 7 | . 4 1 . . . 2 . 3 . 7 3 Average Slot Usage (%) 85 | . 95 85 71 71 90 98 96 86 90 85 71 Engine 8 | . 12 14 14 14 8 9 7 6 7 4 . Treads 13 | . . 28 28 28 18 17 10 . . 10 5 Wheel 2 | . . . . . . . 2 7 7 4 . Device 2 | . . . . . . . . . 5 4 12 Storage 38 | . 28 28 28 28 44 40 52 53 46 34 32 Processor 3 | . . . . . . 8 5 . 7 8 6 Protection 2 | . . . . . 8 4 1 7 . 1 . Energy Gun 1 | . 1 14 . . . . 2 5 . . . Ballistic Gun 4 | . 24 . . . 7 17 12 . . . . Impact Weapon 3 | . . . . . . . . . 6 11 13 Naked Turns . | . . . . . . . . . . . . Heaviest Build 128 | 11 23 23 37 37 75 88 107 107 107 128 119 Greatest Support 76 | 20 20 40 40 40 40 40 40 28 28 76 20 Greatest Overweight (x) 39 | 1 1 . . . 1 4 3 3 3 5 39 Average Overweight (x) 1 | . . . . . . 1 2 3 3 1 20 Largest Inventory Capacity 40 | 6 12 12 16 16 28 32 40 40 40 36 36 Average Capacity 28 | 5 11 12 14 16 27 27 39 40 36 34 35 Most Carried 40 | 6 12 10 16 16 28 32 40 40 40 36 31 Average Carried 26 | 4 10 8 13 16 23 26 34 39 35 30 31 Final Capacity 40 | 6 12 12 16 16 28 32 40 40 36 36 32 Final Carried 40 | 6 11 8 16 16 28 32 40 40 36 31 31 Class Distribution -------------------- 57% | Hauler-Mutant 27% | Mutant 15% | Bothacker-Mutant Dominant Class ---------------- Mutant | -10/Materials Mutant | -10/Mines Mutant | -10/Exiles Mutant | -9/Mines Hauler-Mutant | -8/Materials Hauler-Mutant | -8/Garrison Hauler-Mutant | -7/Factory Hauler-Mutant | -7/Garrison Bothacker-Mutant | -7/Factory Bothacker-Mutant | -6/Factory Hauler-Mutant | -6/Garrison Resources | -11 -10 -10 -10 -9 -8 -8 -7 -7 -7 -6 -6 ----------- Run | Scr Mat Min Exi Min Mat Gar Fac Gar Fac Fac Gar Matter Collected 1444 | 244 75 . 25 . 259 240 . 188 142 271 . Remotely . | . . . . . . . . . . . . Salvage Created 2255 | . 225 . . . 360 293 . 511 119 691 56 Parts 92 | . 5 . . . 21 22 . 23 4 13 4 Haulers Intercepted . | . . . . . . . . . . . . Recyclers Shooed . | . . . . . . . . . . . . Parts Field Recycled . | . . . . . . . . . . . . Retrieved Matter . | . . . . . . . . . . . . Parts Self-Destructed . | . . . . . . . . . . . . Prevented . | . . . . . . . . . . . . Kills | -11 -10 -10 -10 -9 -8 -8 -7 -7 -7 -6 -6 ------- Run | Scr Mat Min Exi Min Mat Gar Fac Gar Fac Fac Gar Combat Hostiles Destroyed 49 | . 5 . . . 7 8 . 12 3 13 1 Melee 16 | . . . . . 3 . . 4 2 7 . Guns 22 | . 3 . . . 4 8 . 7 . . . AOE 3 | . 2 . . . . . . 1 . . . Classes Destroyed 8 | . 2 . . . 3 1 . 2 . . . Worker 1 | . 1 . . . . . . . . . . Swarmer 11 | . . . . . . 3 . 3 1 4 . Grunt 22 | . 5 . . . 2 3 . 5 . 7 . Brawler 2 | . . . . . 1 . . 1 . . . Duelist 1 | . . . . . . . . 1 . . . Sentry 5 | . . . . . 2 2 . . . 1 . Hunter 4 | . . . . . 2 . . 1 . . 1 Programmer 4 | . . . . . . . . 1 2 1 . Best Kill Streak 4 | . 4 . . . 3 3 . 3 1 4 1 Combat Bots Only 4 | . 3 . . . 3 3 . 3 1 4 1 Max Kills in Single Turn 3 | . 3 . . . 1 2 . 1 1 1 1 Gunslinging 1 | . . . . . . 1 . . . . . Exploded 2 | . 2 . . . . . . 1 . . . Melee 1 | . . . . . 1 . . 1 1 1 . Uniques/NPCs Destroyed . | . . . . . . . . . . . . Combat | -11 -10 -10 -10 -9 -8 -8 -7 -7 -7 -6 -6 -------- Run | Scr Mat Min Exi Min Mat Gar Fac Gar Fac Fac Gar Damage Taken 6840 | . 520 25 . . 407 416 . 1068 363 3408 633 Core 1194 | . 77 . . . 71 32 . 80 73 600 261 Absorbed by Shields 185 | . . . . . . . . 185 . . . Core Remaining (%) 82 | 100 . . . 69 . 81 . . 78 . . Volleys Fired 110 | . 30 . . . 15 28 . 37 . . . Largest 2 | . 2 . . . 2 2 . 2 . . . Hottest 126 | . 60 . . . 46 46 . 126 . . . Shots Fired 185 | . 55 . . . 30 45 . 55 . . . Gun 185 | . 55 . . . 30 45 . 55 . . . Cannon . | . . . . . . . . . . . . Launcher . | . . . . . . . . . . . . Special . | . . . . . . . . . . . . Kinetic 124 | . 49 . . . 30 45 . . . . . Thermal 25 | . . . . . . . . 25 . . . Explosive . | . . . . . . . . . . . . Electromagnetic 36 | . 6 . . . . . . 30 . . . Robot Hit Streak 15 | . 15 . . . 10 11 . 9 . . . Robot Miss Streak 4 | . 3 . . . 1 2 . 4 . . . Penetration Max . | . . . . . . . . . . . . Secondary Targets 5 | . . . . . 1 1 . 3 . . . Max Gunslinging Chain 1 | . . . . . 1 1 . 1 . . . Shots Hit Robots 246 | . 40 . . . 29 27 . 49 12 88 1 Core Hits 76 | . 13 . . . 11 15 . 24 2 11 . Critical Hits 1 | . . . . . . 1 . . . . . Critical Kills 1 | . . . . . . 1 . . . . . Critical Parts Destroyed . | . . . . . . . . . . . . Melee Attacks 168 | . . . . . 5 . . 18 20 123 2 Impact 134 | . . . . . . . . . 13 119 2 Slashing 23 | . . . . . 5 . . 18 . . . Piercing . | . . . . . . . . . . . . Sneak Attacks 5 | . . . . . . . . . 1 4 . Combat Hostiles 4 | . . . . . . . . . 1 3 . Follow-up Attacks 13 | . . . . . . . . . . 13 . Damage Inflicted 5614 | . 486 . . . 486 454 . 1123 369 2670 26 Guns 1701 | . 312 . . . 376 454 . 559 . . . Cannons . | . . . . . . . . . . . . Explosions 265 | . 174 . . . . . . 91 . . . Melee 3648 | . . . . . 110 . . 473 369 2670 26 Ramming . | . . . . . . . . . . . . Kinetic 1076 | . 246 . . . 376 454 . . . . . Thermal 574 | . 174 . . . . . . 400 . . . Explosive . | . . . . . . . . . . . . Electromagnetic 316 | . 66 . . . . . . 250 . . . Impact 3065 | . . . . . . . . . 369 2670 26 Slashing 583 | . . . . . 110 . . 473 . . . Piercing . | . . . . . . . . . . . . Highest Corruption 7 | . . . . . 4 4 . 4 7 3 3 Average Corruption 3 | . . . . . 4 4 . 3 5 2 2 Corruption Purged 5 | . . . . . . . . . 2 . 3 Effects 69 | . . . . . 10 16 . 14 14 11 4 Message Errors 18 | . . . . . 1 3 . 4 5 2 3 Matter Fused 20 | . . . . . 5 5 . 3 5 2 . Heat Flow Errors 6 | . . . . . . 1 . 2 1 2 . Energy Discharges 12 | . . . . . 2 2 . 2 2 3 1 Data Loss (minor) 5 | . . . . . . 1 . 2 1 1 . Targeting Errors 3 | . . . . . 2 . . . . 1 . Weapon Failures 5 | . . . . . . 4 . 1 . . . Overload Shots . | . . . . . . . . . . . . Overflow Damage 579 | . 11 . . . . . . 10 96 446 16 Projectiles . | . . . . . . . . . . . . Explosions 15 | . 11 . . . . . . 4 . . . Melee 564 | . . . . . . . . 6 96 446 16 Knockbacks 15 | . . . . . . . . . 5 9 1 Impact 13 | . . . . . . . . . 5 7 1 Kinetic . | . . . . . . . . . . . . Secondary 2 | . . . . . . . . . . 2 . Self-Inflicted Damage 50 | . 50 . . . . . . . . . . Shots 1 | . 1 . . . . . . . . . . Rammed . | . . . . . . . . . . . . Targets Rammed . | . . . . . . . . . . . . Kicked . | . . . . . . . . . . . . Crushed . | . . . . . . . . . . . . Highest Temperature 303 | . 43 . . . 14 220 . 303 78 209 . Average Temperature 70 | . 14 . . . 4 47 . 101 42 90 . Received Heat Transfer 1966 | . 273 15 . . 153 162 . 265 54 1044 . Effects 2 | . . . . . . . . 2 . . . Energy Bleed 1 | . . . . . . . . 1 . . . Interference 1 | . . . . . . . . 1 . . . Siege Activations . | . . . . . . . . . . . . Robots Corrupted . | . . . . . . . . . . . . Combat Hostiles . | . . . . . . . . . . . . Parts Fried 6 | . . . . . . . . . . 4 2 Impact Corruptions 25 | . . . . . . . . . 3 21 1 Robots Melted . | . . . . . . . . . . . . Combat Hostiles . | . . . . . . . . . . . . Parts Melted 3 | . . . . . . . . 2 . 1 . Heat Transferred 1016 | . 250 . . . . . . 766 . . . Parts Sabotaged 2 | . . . . . . . . 2 . . . Parts Stolen . | . . . . . . . . . . . . Parts Stripped . | . . . . . . . . . . . . Power Chain Reactions 2 | . 1 . . . . . . 1 . . . Missiles Intercepted . | . . . . . . . . . . . . Alert | -11 -10 -10 -10 -9 -8 -8 -7 -7 -7 -6 -6 ------- Run | Scr Mat Min Exi Min Mat Gar Fac Gar Fac Fac Gar Peak Influence 688 | . 83 19 . . 130 303 158 394 236 688 413 Initial 403 | . . 19 . . . 83 158 21 206 71 403 Average 163 | . 25 18 . . 33 205 101 188 171 250 402 Maximum Alert Level 2 | . . . . . . 1 . 1 1 2 2 Low Security (%) 68 | 100 100 100 . 100 100 42 100 60 43 68 . Level 1 17 | . . . . . . 57 . 39 56 3 5 Level 2 13 | . . . . . . . . . . 28 94 Level 3 . | . . . . . . . . . . . . Level 4 . | . . . . . . . . . . . . Level 5 . | . . . . . . . . . . . . High Security . | . . . . . . . . . . . . Max Security . | . . . . . . . . . . . . Squads Dispatched 12 | . 5 . . . 1 . 1 . 2 3 . Investigation 5 | . 2 . . . 1 . 1 . . 1 . Extermination 4 | . . . . . . . . . 2 2 . Reinforcement 3 | . 3 . . . . . . . . . . Assault . | . . . . . . . . . . . . Garrison . | . . . . . . . . . . . . Intercept . | . . . . . . . . . . . . Construction Impeded . | . . . . . . . . . . . . Haulers Reinforced . | . . . . . . . . . . . . Stealth | -11 -10 -10 -10 -9 -8 -8 -7 -7 -7 -6 -6 --------- Run | Scr Mat Min Exi Min Mat Gar Fac Gar Fac Fac Gar Distress Signals 1 | . 1 . . . . . . . . . . Communications Jammed . | . . . . . . . . . . . . Distress Signals . | . . . . . . . . . . . . Times Spotted 90 | . 9 2 . . 9 9 . 22 7 30 2 Peak Tracking Total 8 | . 5 2 . . 3 4 . 6 2 8 2 Tactical Retreats 14 | . 1 . . . . 1 . 2 1 9 . Traps | -11 -10 -10 -10 -9 -8 -8 -7 -7 -7 -6 -6 ------- Run | Scr Mat Min Exi Min Mat Gar Fac Gar Fac Fac Gar Traps Triggered 14 | . 1 . . . 1 3 1 4 1 3 . Indirectly . | . . . . . . . . . . . . Trap Hack Attempts . | . . . . . . . . . . . . Triggered . | . . . . . . . . . . . . Disarmed . | . . . . . . . . . . . . Reprogrammed . | . . . . . . . . . . . . Reused . | . . . . . . . . . . . . Traps Extracted . | . . . . . . . . . . . . Installed . | . . . . . . . . . . . . Triggered . | . . . . . . . . . . . . Exploded 3 | . . . . . . . . 3 . . . Machines | -11 -10 -10 -10 -9 -8 -8 -7 -7 -7 -6 -6 ---------- Run | Scr Mat Min Exi Min Mat Gar Fac Gar Fac Fac Gar Machines Disabled 5 | . . . . . . 1 . 2 1 1 . Max in Single Turn 1 | . . . . . . 1 . 1 1 1 . Garrison Relay 3 | . . . . . . 1 . 2 . . . Machines Sabotaged . | . . . . . . . . . . . . Garrisons Compromised . | . . . . . . . . . . . . Overloaded Fab Kills . | . . . . . . . . . . . . Fab Network Shutdowns 1 | . . . . . . . . . . 1 . Hacking | -11 -10 -10 -10 -9 -8 -8 -7 -7 -7 -6 -6 --------- Run | Scr Mat Min Exi Min Mat Gar Fac Gar Fac Fac Gar Machines Accessed 22 | . 3 . 1 . 5 . 2 . 5 6 . Terminals 14 | . 3 . . . 4 . 1 . 3 3 . Fabricators 4 | . . . . . . . . . 2 2 . Repair Stations . | . . . . . . . . . . . . Recycling Units . | . . . . . . . . . . . . Scanalyzers . | . . . . . . . . . . . . Garrison Access 3 | . . . . . 1 . 1 . . 1 . Total Hacks 56 | . 12 . 1 . 12 . 3 . 8 20 . Successful 25 | . 7 . 1 . 6 . 2 . 1 8 . Failed 31 | . 5 . . . 6 . 1 . 7 12 . Catastrophic 4 | . . . . . . . 1 . 1 2 . Database Lockouts . | . . . . . . . . . . . . Manual 32 | . 10 . 1 . 9 . 2 . 3 7 . Terminals 36 | . 12 . . . 10 . 1 . 5 8 . Fabricators 14 | . . . . . . . . . 3 11 . Repair Stations . | . . . . . . . . . . . . Recycling Units . | . . . . . . . . . . . . Scanalyzers . | . . . . . . . . . . . . Garrison Access 5 | . . . . . 2 . 2 . . 1 . Terminal Hacks 9 | . 4 . 1 . 2 . . . . 2 . Part Schematic 2 | . 2 . . . . . . . . . . Prototype ID Bank 1 | . 1 . . . . . . . . . . Branch Access Points 1 | . . . . . 1 . . . . . . Unreport Threat 1 | . 1 . . . . . . . . . . Recall Investigation 1 | . . . . . 1 . . . . . . Registered Components 1 | . . . . . . . . . . 1 . Zone Layout 1 | . . . . . . . . . . 1 . EX-Prototype ID Bank 1 | . . . 1 . . . . . . . . Fabricator Hacks 5 | . . . . . . . . . 1 4 . Load Schematic 3 | . . . . . . . . . 1 2 . Build 2 | . . . . . . . . . . 2 . Repair Station Hacks . | . . . . . . . . . . . . Recycling Unit Hacks . | . . . . . . . . . . . . Scanalyzer . | . . . . . . . . . . . . Garrison Access Hacks 3 | . . . . . 1 . 1 . . 1 . Unlock Access 3 | . . . . . 1 . 1 . . 1 . Unauthorized Hacks 8 | . 3 . . . 3 . 1 . . 1 . Terminals 7 | . 3 . . . 3 . . . . 1 . Botnet 7 | . 3 . . . 3 . . . . 1 . Fabricators . | . . . . . . . . . . . . Repair Stations . | . . . . . . . . . . . . Recycling Units . | . . . . . . . . . . . . Scanalyzers . | . . . . . . . . . . . . Garrison Access 1 | . . . . . . . 1 . . . . Eject 1 | . . . . . . . 1 . . . . Data Cores Recovered . | . . . . . . . . . . . . Used . | . . . . . . . . . . . . Hacking Detections 19 | . 3 . . . 5 . 1 . 5 5 . Full Trace Events 2 | . 1 . . . . . . . . 1 . Feedback Events . | . . . . . . . . . . . . Feedback Blocked . | . . . . . . . . . . . . Robot Schematics Acquired . | . . . . . . . . . . . . Robots Built . | . . . . . . . . . . . . Matter . | . . . . . . . . . . . . Time . | . . . . . . . . . . . . Total Robot Build Rating . | . . . . . . . . . . . . Part Schematics Acquired 2 | . 2 . . . . . . . . . . Parts Built 2 | . . . . . . . . . . 2 . Matter 204 | . . . . . . . . . . 204 . Time 102 | . . . . . . . . . . 102 . Total Part Build Rating 2 | . . . . . . . . . . 2 . Parts Repaired . | . . . . . . . . . . . . Time . | . . . . . . . . . . . . Parts Recycled . | . . . . . . . . . . . . Recycled Matter . | . . . . . . . . . . . . Retrieved Matter . | . . . . . . . . . . . . Retrieved Components . | . . . . . . . . . . . . Parts Scanalyzed . | . . . . . . . . . . . . Part Schematics Acquired . | . . . . . . . . . . . . Parts Damaged . | . . . . . . . . . . . . Bothacking | -11 -10 -10 -10 -9 -8 -8 -7 -7 -7 -6 -6 ------------ Run | Scr Mat Min Exi Min Mat Gar Fac Gar Fac Fac Gar Used RIF Installer 2 | . . . . . . 1 . 1 . . . Structural Interface 1 | . . . . . . . . 1 . . . Robots Hacked 4 | . . . . . . . . . 2 2 . Non-combat . | . . . . . . . . . . . . Combat 4 | . . . . . . . . . 2 2 . Robot Hacks Applied 4 | . . . . . . . . . 2 2 . reboot_system 1 | . . . . . . . . . . 1 . overwrite_iff 2 | . . . . . . . . . 1 1 . formatsys_high 1 | . . . . . . . . . 1 . . Relay Couplers Released 14 | . . . . . . 3 4 7 . . . Ejected 4 | . . . . . . . 4 . . . . Machine Destruction 10 | . . . . . . 3 . 7 . . . Attached 3 | . . . . . . . . . 1 2 . Robots Rewired 1 | . . . . . . . . 1 . . . Allies Hacked . | . . . . . . . . . . . . Hacks Repelled . | . . . . . . . . . . . . Allies | -11 -10 -10 -10 -9 -8 -8 -7 -7 -7 -6 -6 -------- Run | Scr Mat Min Exi Min Mat Gar Fac Gar Fac Fac Gar Total Allies 4 | . . . . . . . . 1 2 1 . Largest Group 1 | . . . . . . . . 1 1 1 . Highest-Rated Group 29 | . . . . . . . . 12 12 29 . Highest-Rated Ally 29 | . . . . . . . . 12 12 29 . Total Orders 2 | . . . . . . . . . . . 2 EXPLORE 1 | . . . . . . . . . . . 1 RETURN 1 | . . . . . . . . . . . 1 Ally Attacks 16 | . . . . . . . . . 14 2 . Total Damage 189 | . . . . . . . . . 151 38 . Kills 3 | . . . . . . . . . 3 . . Allies Corrupted . | . . . . . . . . . . . . Allies Melted . | . . . . . . . . . . . . Intel | -11 -10 -10 -10 -9 -8 -8 -7 -7 -7 -6 -6 ------- Run | Scr Mat Min Exi Min Mat Gar Fac Gar Fac Fac Gar Robot Analysis Total . | . . . . . . . . . . . . Derelict Logs Recovered . | . . . . . . . . . . . . Drone Launches 2 | . . . . . . . . . . . 2 Drone Recoveries 2 | . . . . . . . . . . . 2 Exploration | -11 -10 -10 -10 -9 -8 -8 -7 -7 -7 -6 -6 ------------- Run | Scr Mat Min Exi Min Mat Gar Fac Gar Fac Fac Gar Turns Passed 7572 | 70 252 216 1368 173 1034 634 650 700 703 1259 513 Spaces Moved 3659 | 51 118 126 847 108 456 266 302 357 435 589 4 Core 14 | 12 . . . . . . . . . . 2 Treads 2243 | . . 126 847 108 456 266 217 . . 221 2 Legs 157 | 39 118 . . . . . . . . . . Wheels 1245 | . . . . . . . 85 357 435 368 . Hover . | . . . . . . . . . . . . Flight . | . . . . . . . . . . . . Fastest Speed 50 | 50 120 160 160 160 160 180 130 130 130 110 270 Average Speed 157 | 104 134 160 160 160 179 191 180 130 130 149 1072 Slowest Speed 2000 | 120 150 160 160 160 180 240 200 130 130 270 2000 Overloaded Moves . | . . . . . . . . . . . . Propulsion Burnouts . | . . . . . . . . . . . . Robots Hopped . | . . . . . . . . . . . . Cave-ins Triggered . | . . . . . . . . . . . . Exploration Rate (%) 29 | 5 24 25 92 26 34 41 7 56 17 17 7 Regions Visited 11 Branch Regions 3 Pre-discovered Areas . | . . . . . . . . . . . . Known Exits Taken 4 | . . . . . 1 . 1 . 1 1 . Unknown Exits Taken 5 | 1 1 1 1 1 . . . . . . . Scrap Searched . | . . . . . . . . . . . . Spaces Dug 12 | . . . . . 2 . . . 2 8 . Terrain Destroyed 21 | . 5 . . . 2 . . 4 2 8 . Melee 12 | . . . . . 2 . . . 2 8 . Projectile . | . . . . . . . . . . . . AOE 9 | . 5 . . . . . . 4 . . . Terrain Rammed . | . . . . . . . . . . . . Walls Destroyed . | . . . . . . . . . . . . Machines Disabled . | . . . . . . . . . . . . Actions | -11 -10 -10 -10 -9 -8 -8 -7 -7 -7 -6 -6 --------- Run | Scr Mat Min Exi Min Mat Gar Fac Gar Fac Fac Gar Total 5108 | 65 165 141 860 108 634 345 412 510 561 837 470 Wait 875 | 1 9 12 . 1 121 22 72 35 54 88 460 Move 3646 | 50 117 125 846 107 455 264 301 355 434 588 4 Hop . | . . . . . . . . . . . . Pick Up 123 | 8 6 . 9 . 23 14 17 17 17 12 . Fast Attach 18 | 4 1 . . . 1 1 3 . 2 5 1 Attach 49 | 2 1 3 . . 7 3 7 7 5 14 . Detach 4 | . . . . . . . 1 . . 3 . Swap 29 | . 1 . 2 . 1 4 . 2 7 9 3 Drop 69 | . . 1 3 . 6 7 11 11 22 8 . Fire 110 | . 30 . . . 15 28 . 37 . . . Melee 155 | . . . . . 5 . . 18 20 110 2 Ram . | . . . . . . . . . . . . Kick . | . . . . . . . . . . . . Crush . | . . . . . . . . . . . . Escape Stasis 26 | . . . . . . 2 . 24 . . . Rewire 4 | . . . . . . . . 4 . . . Trap . | . . . . . . . . . . . . Miscellaneous . | . . . . . . . . . . . . Route ------- -11/Scrapyard -10/Materials -10/Mines -10/Exiles (discovered 2 exits: [*Min x2]) -9/Mines -8/Materials (discovered 2 exits: *Sto / Gar) -8/Garrison -7/Factory -7/Garrison -7/Factory -6/Factory (discovered 2 exits: [*Fac] / Gar) -6/Garrison History --------- Turn | Location | Event 7 | -11/Scrapyard | Discovered new exit (range 16) 71 | -11/Scrapyard | Entered Materials 314 | -10/Materials | Discovered new exit (range 6) 315 | -10/Materials | Build established: Mutant 323 | -10/Materials | Entered Mines 335 | -10/Mines | Lost 4 parts (1p1n2w) 458 | -10/Mines | Deemed a non-threat by the Exiles lab entrance 458 | -10/Mines | Discovered new exit (range 5) 539 | -10/Mines | Entered Exiles 589 | -10/Exiles | Discovered new exit (range 14) 632 | -10/Exiles | Met 8R-AWN 658 | -10/Exiles | Met EX-HEX 745 | -10/Exiles | Met EX-DEC 780 | -10/Exiles | Visited The Gauntlet 1023 | -10/Exiles | Discovered new exit (range 14) 1179 | -10/Exiles | Met EX-BIN 1247 | -10/Exiles | Aligned with FarCom system 1249 | -10/Exiles | Given EX-Vault access code 1300 | -10/Exiles | Opened EX-Vault 1311 | -10/Exiles | Found PSU Rigger 1315 | -10/Exiles | Found Lightpack 2.0 1322 | -10/Exiles | Found YOLO Cannon 1360 | -10/Exiles | Warned to stay clear of 0b10 Research branches 1907 | -10/Exiles | Stole three prototypes: Lightpack 2.0, PSU Rigger, YOLO Cannon 1907 | -10/Exiles | Entered Mines 2041 | -9/Mines | Discovered new exit (range 8) 2080 | -9/Mines | Entered Materials 2080 | -8/Materials | Evolved 4 slots: Utility x4 2080 | -8/Materials | Discovered new exit (range 6) 2397 | -8/Materials | Build established: Hauler-Mutant 2892 | -8/Materials | Identified exit to Storage 3111 | -8/Materials | Identified exit to Garrison 3114 | -8/Materials | Entered Garrison 3198 | -8/Garrison | Triggered checkpoint 3308 | -8/Garrison | Discovered new exit (range 11) 3337 | -8/Garrison | Installed Relay Interface Framework 3424 | -8/Garrison | Triggered checkpoint 3445 | -8/Garrison | Garrison Relay disabled 3748 | -8/Garrison | Entered Factory 3748 | -7/Factory | Evolved 2 slots: Utility x2 3750 | -7/Factory | FarCom data flow suspended 4304 | -7/Factory | Identified exit to Garrison 4398 | -7/Factory | Entered Garrison 4460 | -7/Garrison | Triggered checkpoint 4560 | -7/Garrison | Triggered checkpoint 4627 | -7/Garrison | Discovered new exit (range 12) 4649 | -7/Garrison | Expanded RIF knowledge: Structural Interface 4804 | -7/Garrison | Triggered checkpoint 4904 | -7/Garrison | Lost 3 parts (1u2w) 4926 | -7/Garrison | Garrison Relay disabled 5055 | -7/Garrison | Garrison Relay disabled 5098 | -7/Garrison | Entered Factory 5618 | -7/Factory | Build established: Bothacker-Mutant 5689 | -7/Factory | Discovered new exit (range 5) 5748 | -7/Factory | Identified exit to Factory 5801 | -7/Factory | Entered another Factory area 5801 | -6/Factory | Evolved 2 slots: Propulsion x2 6199 | -6/Factory | Spotted B-75 Beast 6348 | -6/Factory | Fabricated Hcp. Storage Unit (x1) 6403 | -6/Factory | Fabricated Hcp. Storage Unit (x1) 6533 | -6/Factory | Core integrity fell below 50% 6590 | -6/Factory | Lost 7 parts (1p3n1u2w) 6707 | -6/Factory | Local fabrication network quarantined 6758 | -6/Factory | Build established: Hauler-Mutant 6841 | -6/Factory | Discovered new exit (range 7) 6957 | -6/Factory | Lost 3 parts (1p2n) 7039 | -6/Factory | Identified exit to Garrison 7060 | -6/Factory | Entered Garrison 7498 | -6/Garrison | Triggered checkpoint 7551 | -6/Garrison | Core integrity fell below 20% 7573 | -6/Garrison | Destroyed by H-66 Slayer with Gauss Rifle Last Messages --------------- 07526_ RIF reveals location of phase wall. 07526_ Penetrated by Slug. 07529_ Arm. Treads destroyed. 07530_ Destroyed Targeting Computer. 07530_ H-66 Slayer system corrupted by crushing effect. 07530_ H-66 Slayer knocked back. 07531_ H-66 Slayer system terminally corrupted. 07531_ Targeting Computer fried. 07531_ Phase Shifter fried. 07534_ Slug penetrates Wall. 07534_ RIF reveals location of phase wall. 07537_ Penetrated by Slug. 07540_ Imp. Medium Armor Plating destroyed. 07540_ Penetrated by Slug. 07547_ Med. Storage Unit destroyed. 07550_ Penetrated by Slug. 07560_ Slug penetrates Wall. 07570_ Penetrated by Slug. 07571_ Acquired Flexi-carbon Leg. 07573_ Penetrated by Slug. Map ----- +----------------------------------------------------+ | ??????????????????????????????????????? | | ??????????????????????????????????????? | | ??????????????????????????????????????? | | ??????????????????????????????????????? | | ??????????????????????????????????????? | | ??????????????????????????????????????? | | ??????????????????????????????????????? | | ??????????????????????????????????????? | | ??????????????????????????????????????? | | ??????????????????????????????????????? | | ??????????????????????????????????????? | | ??????????????????????????????????????? | | ??????????????????????????????????????? | | ??????????????????????????????????????? | | ??????????????????????????????????????? | | ??????????????????????????????????????? | | ??????????????????????????????????????? | | ??????????????????????????????????????? | | ??????????????????????????????????????? | | ??????????????????????????????????????? | | ??????????????????????????????????????? | | ???????????#??????????????????????????? | | ???????????# ?????????????????????? #?? | | ??????????##;############+######## ### | | ??????????# [ | | ??????????# @%= | | ??????????# [h | | ??????????# ############# ##### #?? | | ??????????# #?????????### #????????? | | ??????????##+##?????????# #????????? | | ????????????????????????# #????????? | | ????????????????????????# #????????? | | ????????????????????????### #????????? | | ??????????????????????????# #????????? | | ??????????????????????????# #????????? | | ??????????????????????????# #????????? | | ??????????????????????????# #????????? | | ?????????????????????????? #????????? | | ??????????????????????????# #????????? | | ??????????????????????????? #????????? | | ??????????????????????????? #????????? | | ??????????????????????????? #????????? | | ??????????????????????????? #????????? | | ??????????????????????????? #????????? | | ??????????????????????????? ?????????? | | ??????????????????????????? ?????????? | | ??????????????????????????? ?????????? | | ??????????????????????????????????????? | | ??????????????????????????????????????? | | ??????????????????????????????????????? | +----------------------------------------------------+ Best States ------------- Heat Dissipation 37 Energy Generation 18 Energy Capacity 290 Matter Stores 300 Matter Capacity 300 Sight Range 16 Terrain Scan Range 24 Terrain Scan Density 210 Armor Coverage 225 Resistance: KI 20 Core Shielding 20 Melee Speed Boost 20 Evasion (%) 50 Targeting Accuracy 8 Recoil Reduction 3 Offensive Hacking 12 Relay Coupler Types 38 Relay Coupler Value 1 Item Schematics ----------------- Hcp. Storage Unit | -10/Materials | Hacked Signal Interpreter | -10/Materials | Hacked Robot Schematics ------------------ None Fabricated ------------ Hcp. Storage Unit | x1 | -6/Factory Hcp. Storage Unit | x1 | -6/Factory Alien Tech Used ----------------- None Achievements -------------- None Challenges ------------ None Game ------ Seed DimensionalHoverMultirail Manual? 0 Play Time 01:05:18 Cumulative 75.8 hours Start 2020.12.29 @ 02:05:59 End 2020.12.29 @ 05:05:09 Sessions 2 Manual Loads 0 Difficulty Rogue Special Mode None Game No. 19 Rogue 19 Adventurer 0 Explorer 0 Win Type - Total 5 Types 4/0/0/1/0/0/0/0/0 Lore% 30 Gallery% 58 Achievement% 44 Wizard Run 0 Options --------- ASCII 0 Keyboard 0 Movement Numpad Keybinds 0 Fullscreen 1 Font 18/TerminusBold Map View 76x50 Tactical HUD 1 Map Filters NONE Filters NONE Steam 1 RUN: 35b7a7e7-d108-4b88-a540-bafffdb1ee47